bitfinex/quotes_SOLUSD_20250206
["timestamp","ask_amount","ask_price","bid_price","bid_amount"]
[1738877569036,0.77766935,190.98,190.94,23.69966909]
[1738877569837,0.77766935,191.0,190.97,23.69966909]
[1738877570011,8.7387,191.03,190.99,23.69966909]
[1738877570621,8.7387,191.03,191.0,23.69966909]
[1738877570827,0.10894934,191.04,191.02,23.69966909]
[1738877571020,0.63234934,191.04,191.01,23.69966909]
[1738877571202,1.41001869,191.04,191.0,23.69966909]
[1738877571404,1.41001869,191.04,190.99,23.69966909]
[1738877571907,1.41001869,191.04,190.93,18.64934853]
[1738877571908,0.63234934,191.04,191.0,23.69966909]
[1738877572314,0.10894934,191.04,191.02,23.69966909]
[1738877572529,0.10894934,191.04,191.03,23.69966909]
[1738877573128,0.10894934,191.04,191.03,28.93436909]
[1738877573453,0.063,191.13,191.03,42.34621762]
[1738877573630,0.063,191.13,191.12,23.69966909]
[1738877575826,0.063,191.13,191.12,28.93196909]
[1738877576055,0.1577413,191.13,191.12,23.69966909]
[1738877576357,0.1577413,191.13,191.12,28.93196909]
[1738877576674,0.1577413,191.13,191.12,42.34381762]
[1738877577269,0.11253077,191.15,191.13,37.11151762]
[1738877577454,0.16605946,191.17,191.15,13.41184853]
[1738877577654,0.16605946,191.17,191.16,37.11151762]
[1738877577822,0.063,191.27,191.17,13.41184853]
[1738877578154,0.063,191.27,191.18,60.81118671]
[1738877578355,0.063,191.27,191.19,13.41184853]
[1738877578527,0.063,191.27,191.21,13.41184853]
[1738877578862,0.063,191.27,191.21,42.34131762]
[1738877579235,0.063,191.27,191.24,20.0]
[1738877579558,0.063,191.27,191.26,23.69966909]
[1738877580232,8.1587826,191.32,191.26,23.69966909]
[1738877580531,0.063,191.37,191.31,23.69966909]
[1738877580859,0.063,191.37,191.36,23.69966909]
[1738877581030,0.063,191.37,191.35,23.69966909]
[1738877581368,0.063,191.37,191.36,23.69966909]
[1738877581531,0.063,191.37,191.27,13.41184853]
[1738877581532,0.063,191.37,191.33,23.69966909]
[1738877581727,0.063,191.37,191.34,23.69966909]
[1738877582463,0.77766935,191.36,191.23,1.0]
[1738877582624,0.063,191.37,191.25,20.0]
[1738877582826,0.063,191.37,191.3,13.41184853]
[1738877583227,0.063,191.37,191.31,20.0]
[1738877583438,0.063,191.37,191.36,23.69966909]
[1738877584465,0.063,191.41,191.39,20.0]
[1738877584671,0.063,191.47,191.4,67.39933818]
[1738877584855,0.063,191.47,191.46,23.69966909]
[1738877585874,0.063,191.47,191.45,23.69966909]
[1738877586164,0.063,191.47,191.46,23.69966909]
[1738877586668,0.063,191.47,191.36,1.0]
[1738877586669,0.063,191.47,191.34,2.654]
[1738877586964,0.063,191.47,191.39,20.0]
[1738877587165,1.09164935,191.47,191.35,5.226]
[1738877587672,38.34220771,191.46,191.4,38.34220771]
[1738877587971,0.063,191.47,191.43,38.34220771]
[1738877588348,0.063,191.47,191.45,38.34220771]
[1738877588691,0.063,191.47,191.44,38.34220771]
[1738877589051,0.063,191.47,191.37,13.41184853]
[1738877589052,0.063,191.47,191.45,38.34220771]
[1738877589879,0.063,191.47,191.46,38.34220771]
[1738877591170,0.063,191.47,191.46,43.56520771]
[1738877591550,0.063,191.57,191.47,13.41184853]
[1738877591853,0.063,191.57,191.55,38.34220771]
[1738877592250,0.585,191.57,191.55,38.34220771]
[1738877592450,0.585,191.57,191.53,38.34220771]
[1738877592948,0.063,191.57,191.53,38.34220771]
[1738877593365,39.11987706,191.56,191.49,38.34220771]
[1738877593562,0.77766935,191.56,191.51,38.34220771]
[1738877593853,0.77766935,191.56,191.44,5.2233]
[1738877593854,0.063,191.57,191.52,38.34220771]
[1738877594493,0.063,191.57,191.53,38.34220771]
[1738877594652,0.063,191.57,191.54,38.34220771]
[1738877594859,0.063,191.57,191.55,38.34220771]
[1738877595054,0.063,191.57,191.56,38.34220771]
[1738877596089,0.17337986,191.57,191.56,38.34220771]
[1738877597876,0.17337986,191.57,191.55,38.34220771]
[1738877598490,0.17337986,191.57,191.56,38.34220771]
[1738877598670,0.17337986,191.57,191.5,43.56390771]
[1738877598671,39.03758757,191.57,191.5,38.34220771]
[1738877598994,0.69537986,191.57,191.52,38.34220771]
[1738877599312,0.69537986,191.57,191.51,38.34220771]
[1738877599782,0.522,191.55,191.5,38.34220771]
[1738877600091,0.522,191.55,191.51,38.34220771]
[1738877600653,1.29966935,191.55,191.5,38.34220771]
[1738877600885,0.522,191.55,191.5,38.34220771]
[1738877601256,0.25098,191.53,191.49,38.34220771]
[1738877601581,39.11987706,191.52,191.47,0.03]
[1738877601753,0.89857,191.51,191.47,0.03]
[1738877601951,0.5221,191.51,191.47,0.03]
[1738877602154,31.17337986,191.57,191.5,38.34220771]
[1738877602155,0.77766935,191.55,191.5,38.34220771]
[1738877602378,0.522,191.54,191.52,38.34220771]
[1738877602598,0.522,191.54,191.49,38.34220771]
[1738877602887,0.522,191.54,191.47,0.03]
[1738877602888,0.522,191.54,191.5,38.34220771]
[1738877603108,8.1309,191.56,191.53,38.34220771]
[1738877603319,0.69537986,191.57,191.54,38.34220771]
[1738877603486,0.69537986,191.57,191.53,38.34220771]
[1738877604504,38.34220771,191.55,191.47,38.37220771]
[1738877604695,39.11987706,191.56,191.49,38.34220771]
[1738877605320,0.25098,191.55,191.48,38.34220771]
[1738877605615,38.34220771,191.52,191.47,0.03]
[1738877605786,38.71867771,191.5,191.47,0.03]
[1738877605979,7.8689,191.51,191.47,0.03]
[1738877606305,1.29976935,191.5,191.47,0.03]
[1738877607406,7.8689,191.56,191.49,23.59577953]
[1738877607613,0.522,191.56,191.55,23.59577953]
[1738877607912,0.69537986,191.57,191.55,23.59577953]
[1738877608613,1.47304921,191.57,191.51,23.59577953]
[1738877608776,0.77766935,191.56,191.5,23.59577953]
[1738877609175,23.59577953,191.55,191.48,23.59577953]
[1738877609385,2.12586986,191.57,191.51,23.59577953]
[1738877609386,22.77804921,191.57,191.51,23.59577953]
[1738877609705,0.25098,191.56,191.51,23.59577953]
[1738877610576,0.522,191.55,191.51,23.59577953]
[1738877610807,0.25098,191.54,191.49,23.59577953]
[1738877611007,0.25098,191.54,191.47,0.03]
[1738877611008,0.522,191.55,191.48,23.59577953]
[1738877611383,0.522,191.55,191.49,23.59577953]
[1738877612196,0.522,191.55,191.5,23.59577953]
[1738877612515,0.12549,191.51,191.47,0.03]
[1738877612815,23.84675953,191.5,191.47,0.03]
[1738877612991,0.77766935,191.49,191.47,0.03]
[1738877613602,23.97224953,191.48,191.47,0.03]
[1738877614348,25.27211888,191.48,191.47,0.03]
[1738877614914,0.12549,191.47,191.38,23.59577953]
[1738877615106,23.97224953,191.45,191.37,23.59577953]
[1738877615418,0.25098,191.43,191.37,23.59577953]
[1738877615624,0.25098,191.43,191.39,23.59577953]
[1738877615919,0.77766935,191.47,191.41,23.59577953]
[1738877616089,0.11287474,191.42,191.41,23.59577953]
[1738877617426,0.63527474,191.42,191.37,23.59577953]
[1738877618231,0.63527474,191.42,191.38,23.59577953]
[1738877618604,0.25098,191.41,191.37,23.59577953]
[1738877618803,23.84675953,191.41,191.35,23.59577953]
[1738877619233,0.63527474,191.42,191.38,23.59577953]
[1738877619735,0.63527474,191.42,191.41,23.59577953]
[1738877619736,0.11287474,191.42,191.41,23.59577953]
[1738877620313,0.11287474,191.42,191.4,23.59577953]
[1738877621635,0.11287474,191.42,191.41,43.59577953]
[1738877621802,0.11287474,191.42,191.41,57.00762806]
[1738877622808,0.11287474,191.42,191.41,62.23192806]
[1738877623717,0.09422207,191.44,191.42,14.41184853]
[1738877623919,0.10683499,191.45,191.43,39.79091964]
[1738877624238,0.522,191.55,191.46,33.41184853]
[1738877624527,0.522,191.55,191.46,57.00762806]
[1738877624736,0.522,191.55,191.46,62.23062806]
[1738877625312,0.5221,191.53,191.46,57.00762806]
[1738877625518,1.02864935,191.56,191.46,57.00762806]
[1738877625713,7.9486,191.57,191.46,62.23062806]
[1738877625940,8.4706,191.57,191.46,62.23062806]
[1738877626140,7.9486,191.57,191.46,62.23062806]
[1738877626435,0.063,191.57,191.46,62.23062806]
[1738877626637,0.063,191.57,191.46,63.23062806]
[1738877627216,0.063,191.57,191.47,15.53733853]
[1738877627440,0.063,191.57,191.55,20.0]
[1738877627615,0.063,191.57,191.56,23.59577953]
[1738877629228,0.063,191.57,191.54,23.59577953]
[1738877629542,0.063,191.57,191.55,23.59577953]
[1738877630113,0.063,191.57,191.54,20.0]
[1738877630114,0.063,191.57,191.52,23.59577953]
[1738877630334,0.063,191.57,191.51,23.59577953]
[1738877630641,0.063,191.57,191.52,23.59577953]
[1738877630839,0.585,191.57,191.52,23.59577953]
[1738877631609,0.585,191.57,191.53,23.59577953]
[1738877631923,0.585,191.57,191.52,23.59577953]
[1738877632120,0.25098,191.56,191.51,23.59577953]
[1738877632327,23.59577953,191.55,191.48,23.59577953]
[1738877632539,24.62442888,191.56,191.49,23.59577953]
[1738877632915,24.62442888,191.56,191.45,13.41184853]
[1738877632916,0.25098,191.56,191.5,23.59577953]
[1738877633121,1.02864935,191.56,191.5,23.59577953]
[1738877633323,0.522,191.55,191.5,23.59577953]
[1738877633947,0.063,191.57,191.51,23.59577953]
[1738877634246,0.585,191.57,191.53,23.59577953]
[1738877634427,0.063,191.57,191.54,23.59577953]
[1738877634631,0.063,191.57,191.56,23.59577953]
[1738877635558,0.063,191.57,191.56,42.22782806]
[1738877636132,0.17475601,191.57,191.56,28.81597953]
[1738877636348,0.17475601,191.57,191.56,23.59577953]
[1738877636921,0.17475601,191.57,191.54,23.59577953]
[1738877637942,0.17475601,191.57,191.56,23.59577953]
[1738877639050,0.09539263,191.59,191.57,13.41184853]
[1738877639227,0.09539263,191.59,191.58,37.00762806]
[1738877640341,0.09539263,191.59,191.58,42.22732806]
[1738877640661,0.09539263,191.59,191.58,65.82310759]
[1738877641158,0.09539263,191.59,191.58,42.22732806]
[1738877641653,0.09539263,191.59,191.58,23.59577953]
[1738877642035,0.09539263,191.59,191.58,42.22732806]
[1738877642427,0.09539263,191.59,191.58,23.59577953]
[1738877643157,0.09539263,191.59,191.56,23.59577953]
[1738877643341,0.09539263,191.59,191.57,23.59577953]
[1738877643658,0.09539263,191.59,191.52,18.63314853]
[1738877643659,0.09539263,191.59,191.56,23.59577953]
[1738877643863,0.09539263,191.59,191.51,4.42]
[1738877643864,0.09539263,191.59,191.54,23.59577953]
[1738877644165,0.09539263,191.59,191.56,23.59577953]
[1738877644345,0.09539263,191.59,191.57,23.59577953]
[1738877644940,0.09539263,191.59,191.55,23.59577953]
[1738877645135,0.61729263,191.59,191.55,23.59577953]
[1738877646366,0.09539263,191.59,191.58,23.59577953]
[1738877647147,0.09539263,191.59,191.4,161.79577953]
[1738877647148,0.12549,191.57,191.4,161.79577953]
[1738877647355,0.12549,191.58,191.5,23.59577953]
[1738877647556,0.12549,191.58,191.51,23.59577953]
[1738877647760,0.25098,191.56,191.47,20.0]
[1738877647959,0.25098,191.56,191.44,5.2235]
[1738877648162,24.37344888,191.55,191.48,23.59577953]
[1738877648363,24.62442888,191.56,191.49,23.59577953]
[1738877648747,23.59577953,191.55,191.48,23.59577953]
[1738877649052,0.522,191.55,191.49,23.59577953]
[1738877649571,0.522,191.55,191.51,23.59577953]
[1738877649741,0.522,191.55,191.5,23.59577953]
[1738877650369,0.77766935,191.55,191.51,23.59577953]
[1738877650580,0.5219,191.58,191.54,23.59577953]
[1738877651163,0.5219,191.58,191.55,23.59577953]
[1738877651359,0.5219,191.58,191.54,23.59577953]
[1738877651754,0.5219,191.58,191.5,5.2218]
[1738877651755,0.5219,191.58,191.55,23.59577953]
[1738877651953,0.5219,191.58,191.53,23.59577953]
[1738877652673,0.25098,191.57,191.52,23.59577953]
[1738877652846,0.25098,191.57,191.49,23.59577953]
[1738877652847,0.25098,191.55,191.49,23.59577953]
[1738877653257,0.522,191.54,191.49,23.59577953]
[1738877653663,23.84675953,191.53,191.46,23.59577953]
[1738877653881,0.25098,191.53,191.48,23.59577953]
[1738877654973,0.5221,191.52,191.48,23.59577953]
[1738877655947,0.11379823,191.49,191.48,23.59577953]
[1738877656582,0.11379823,191.49,191.47,23.59577953]
[1738877658072,0.63599823,191.49,191.47,23.59577953]
[1738877658282,0.11379823,191.49,191.47,23.59577953]
[1738877658786,0.11379823,191.49,191.4,24.88517239]
[1738877658787,0.00379823,191.49,191.48,23.59577953]
[1738877659693,0.00379823,191.49,191.48,28.81817953]
[1738877659899,0.00379823,191.49,191.48,65.82580759]
[1738877660060,0.10731904,191.5,191.49,60.60340759]
[1738877660379,0.10592792,191.58,191.51,33.41184853]
[1738877660561,0.10592792,191.58,191.56,23.59577953]
[1738877661783,0.63295287,191.57,191.53,23.59577953]
[1738877662366,0.11095287,191.57,191.56,23.59577953]
[1738877663383,0.11095287,191.57,191.56,42.22782806]
[1738877663795,0.10592792,191.58,191.56,65.82360759]
[1738877663994,0.063,191.6,191.59,20.0]
[1738877664289,0.063,191.67,191.66,23.59577953]
[1738877665690,0.063,191.67,191.66,28.81327953]
[1738877665913,0.063,191.67,191.66,23.59577953]
[1738877667303,0.063,191.67,191.65,43.59577953]
[1738877667601,0.063,191.67,191.66,23.59577953]
[1738877669900,0.063,191.67,191.66,28.81327953]
[1738877670195,82.1,191.75,191.66,28.81327953]
[1738877670196,0.5844,191.77,191.69,20.0]
[1738877670394,0.063,191.77,191.75,23.59577953]
[1738877670705,0.5844,191.77,191.73,23.59577953]
[1738877670909,0.5844,191.77,191.7,23.59577953]
[1738877670910,0.25098,191.76,191.7,23.59577953]
[1738877671205,0.25098,191.76,191.69,23.59577953]
[1738877671206,24.62442888,191.76,191.69,23.59577953]
[1738877671681,0.25098,191.74,191.69,23.59577953]
[1738877672303,23.84675953,191.74,191.68,20.0]
[1738877672502,0.25098,191.74,191.68,43.59577953]
[1738877672702,0.25098,191.74,191.69,23.59577953]
[1738877672703,0.5215,191.73,191.69,23.59577953]
[1738877673300,0.5215,191.73,191.68,43.59577953]
[1738877673509,23.97224953,191.72,191.65,23.59577953]
[1738877673809,23.84675953,191.7,191.63,23.59577953]
[1738877673991,0.25098,191.68,191.62,23.59577953]
[1738877674595,0.25098,191.68,191.57,5.22]
[1738877674596,23.59577953,191.71,191.64,23.59577953]
[1738877674794,24.37344888,191.7,191.63,23.59577953]
[1738877675112,0.37647,191.69,191.63,23.59577953]
[1738877675299,0.25098,191.69,191.63,23.59577953]
[1738877675498,25.42137953,191.71,191.64,23.59577953]
[1738877675700,0.25098,191.7,191.64,23.59577953]
[1738877676122,0.10126156,191.65,191.64,23.59577953]
[1738877678609,0.10712051,191.66,191.64,29.59653904]
[1738877678793,0.10712051,191.66,191.65,23.59577953]
[1738877679607,0.10712051,191.66,191.65,37.00762806]
[1738877680012,0.10712051,191.66,191.65,42.22542806]
[1738877680195,0.10712051,191.66,191.65,28.81357953]
[1738877682221,0.10712051,191.66,191.65,42.22542806]
[1738877682424,0.10712051,191.66,191.65,43.00779343]
[1738877684017,0.11347165,191.67,191.66,13.41184853]
[1738877684226,0.11347165,191.67,191.66,37.00762806]
[1738877684724,0.11347165,191.67,191.66,42.22512806]
[1738877685819,0.11347165,191.67,191.66,28.81327953]
[1738877686126,0.10254689,191.68,191.66,42.22512806]
[1738877686296,0.10254689,191.68,191.67,24.37811154]
[1738877686703,0.10254689,191.68,191.67,28.81307953]
[1738877686917,0.5844,191.77,191.7,20.0]
[1738877686918,0.063,191.77,191.7,20.0]
[1738877687099,0.063,191.77,191.71,23.59577953]
[1738877687924,0.063,191.77,191.73,43.59577953]
[1738877688623,0.063,191.77,191.73,48.81137953]
[1738877689128,0.063,191.77,191.73,43.59577953]
[1738877690223,0.063,191.77,191.73,48.81137953]
[1738877691109,0.063,191.77,191.73,23.59577953]
[1738877691307,0.5844,191.77,191.73,23.59577953]
[1738877691518,0.5844,191.77,191.75,20.0]
[1738877691519,0.063,191.77,191.75,20.0]
[1738877691705,0.063,191.77,191.76,43.59577953]
[1738877692898,0.063,191.77,191.75,23.59577953]
[1738877693098,0.063,191.77,191.74,23.59577953]
[1738877693735,0.063,191.77,191.75,23.59577953]
[1738877693948,0.016,191.8,191.75,23.59577953]
[1738877694648,0.016,191.8,191.74,23.59577953]
[1738877694847,0.016,191.8,191.75,23.59577953]
[1738877696024,0.09583936,191.76,191.75,23.59577953]
[1738877696425,0.09583936,191.76,191.73,23.59577953]
[1738877696831,0.09583936,191.76,191.72,23.59577953]
[1738877697457,0.61723936,191.76,191.72,23.59577953]
[1738877698151,0.09583936,191.76,191.73,23.59577953]
[1738877698655,0.09583936,191.76,191.75,23.59577953]
[1738877699541,0.09583936,191.76,191.75,28.81087953]
[1738877701038,1e-08,191.77,191.75,28.81087953]
[1738877701243,0.12671906,191.8,191.79,20.0]
[1738877701454,0.12671906,191.8,191.79,43.59577953]
[1738877701761,0.12671906,191.8,191.79,48.80977953]
[1738877701984,0.12671906,191.8,191.79,85.81740759]
[1738877702138,1e-08,191.81,191.8,47.19155906]
[1738877702459,1e-08,191.81,191.8,23.59577953]
[1738877703258,1e-08,191.81,191.79,23.59577953]
[1738877703463,1e-08,191.81,191.8,23.59577953]
[1738877703960,1e-08,191.81,191.76,23.59577953]
[1738877704263,0.12549,191.78,191.72,23.59577953]
[1738877704486,23.84675953,191.77,191.7,23.59577953]
[1738877704646,1.5107,191.79,191.71,20.0]
[1738877705039,1.5107,191.79,191.69,13.41184853]
[1738877705770,1.5107,191.79,191.76,23.59577953]
[1738877705973,1.5107,191.79,191.77,23.59577953]
[1738877706261,1e-08,191.81,191.78,23.59577953]
[1738877706471,1e-08,191.81,191.8,23.59577953]
[1738877707173,1e-08,191.81,191.8,47.19155906]
[1738877707347,1e-08,191.81,191.8,23.59577953]
[1738877707867,1e-08,191.81,191.8,52.40525906]
[1738877708396,0.10794482,191.83,191.82,33.41184853]
[1738877708571,0.09867106,191.85,191.83,23.59577953]
[1738877708881,0.09867106,191.85,191.84,23.59577953]
[1738877709898,0.09867106,191.85,191.84,28.80837953]
[1738877711884,0.09867106,191.85,191.84,23.59577953]
[1738877713299,0.09867106,191.85,191.82,23.59577953]
[1738877713595,2.21777106,191.85,191.79,23.59577953]
[1738877713980,1.69657106,191.85,191.83,23.59577953]
[1738877714699,1.69657106,191.85,191.82,23.59577953]
[1738877714874,1.69657106,191.85,191.81,23.59577953]
[1738877716006,0.10065975,191.82,191.79,23.59577953]
[1738877716178,0.10065975,191.82,191.81,23.59577953]
[1738877718502,0.10289082,191.83,191.81,28.80917953]
[1738877718700,0.10289082,191.83,191.82,14.68382081]
[1738877718909,0.10289082,191.83,191.82,28.87742188]
[1738877719196,0.11129859,191.84,191.83,13.41184853]
[1738877719519,0.11129859,191.84,191.83,28.09566934]
[1738877719874,0.11448918,191.87,191.83,28.09566934]
[1738877720100,0.11448918,191.87,191.86,34.68382081]
[1738877720397,0.11448918,191.87,191.86,39.89592081]
[1738877720600,0.11448918,191.87,191.86,48.69967969]
[1738877721102,0.11448918,191.87,191.86,62.11152822]
[1738877721404,0.063,191.94,191.9,20.0]
[1738877721587,0.063,191.94,191.93,23.48757969]
[1738877723201,0.063,191.94,191.93,28.69777969]
[1738877723410,0.063,191.96,191.95,20.0]
[1738877723628,0.063,191.96,191.95,43.48757969]
[1738877724185,0.063,191.96,191.95,62.10902822]
[1738877724810,0.063,191.96,191.95,48.69717969]
[1738877725014,0.063,191.96,191.95,43.48757969]
[1738877726713,0.063,191.96,191.95,23.48757969]
[1738877727106,0.063,191.96,191.94,43.48757969]
[1738877727493,0.063,191.96,191.93,23.48757969]
[1738877727808,0.063,191.96,191.91,23.48757969]
[1738877728120,23.55057969,191.96,191.89,23.48757969]
[1738877728298,23.48757969,191.94,191.88,23.48757969]
[1738877728500,23.73855969,191.95,191.88,23.48757969]
[1738877728818,8.8392,191.92,191.87,23.48757969]
[1738877728999,8.8392,191.92,191.81,13.0966]
[1738877729000,32.32677969,191.92,191.85,23.48757969]
[1738877729318,0.25098,191.91,191.85,23.48757969]
[1738877729725,0.25098,191.91,191.81,0.063]
[1738877730022,0.25098,191.91,191.85,23.48757969]
[1738877730323,8.8392,191.92,191.87,23.48757969]
[1738877730524,8.3182,191.92,191.9,23.48757969]
[1738877730935,8.3182,191.92,191.91,23.48757969]
[1738877731120,0.5839,191.96,191.91,23.48757969]
[1738877731325,0.5839,191.96,191.92,23.48757969]
[1738877732520,0.063,191.96,191.93,23.48757969]
[1738877732826,0.063,191.96,191.94,23.48757969]
[1738877733029,0.063,191.96,191.92,23.48757969]
[1738877733338,0.063,191.96,191.93,23.48757969]
[1738877733643,0.063,191.96,191.94,23.48757969]
[1738877734142,0.063,191.96,191.88,13.41184853]
[1738877734310,0.063,191.96,191.95,23.48757969]
[1738877735431,0.063,191.96,191.95,28.69717969]
[1738877735648,0.063,191.97,191.95,42.10902822]
[1738877735938,0.063,192.0,191.96,36.89942822]
[1738877736143,0.16237347,192.0,191.99,23.48757969]
[1738877736747,0.16237347,192.0,191.99,28.69617969]
[1738877737456,0.16027891,192.01,191.99,66.3766523]
[1738877737622,0.16027891,192.01,192.0,60.38700791]
[1738877737827,0.16027891,192.01,192.0,60.51249791]
[1738877738139,0.09825809,192.02,192.01,13.53733853]
[1738877738361,0.17096775,192.04,192.03,33.53733853]
[1738877738662,8.6791826,192.16,192.05,0.12549]
[1738877738960,8.1587826,192.16,192.08,20.0]
[1738877739125,8.1587826,192.16,192.15,23.48757969]
[1738877740133,16.3175652,192.17,192.15,23.48757969]
[1738877740451,16.3175652,192.17,192.16,43.48757969]
[1738877740653,16.3175652,192.17,192.16,48.69147969]
[1738877740840,16.3175652,192.17,192.16,62.10332822]
[1738877741445,32.6351304,192.19,192.17,13.41184853]
[1738877741664,28.39073413,192.19,192.18,60.38700791]
[1738877741839,25.53073413,192.19,192.18,46.97515938]
[1738877742147,48.9526956,192.22,192.21,20.0]
[1738877742447,48.9526956,192.22,192.21,43.48757969]
[1738877742645,42.0826956,192.22,192.21,48.69017969]
[1738877742847,60.53354563,192.24,192.23,20.12549]
[1738877743025,8.06635703,192.3,192.23,43.61306969]
[1738877743225,8.06635703,192.3,192.27,23.48757969]
[1738877743445,8.06635703,192.3,192.26,23.48757969]
[1738877743652,8.06635703,192.3,192.28,23.48757969]
[1738877744156,8.58635703,192.3,192.25,23.48757969]
[1738877744355,32.07393672,192.3,192.23,23.48757969]
[1738877744528,23.48757969,192.29,192.22,23.48757969]
[1738877744723,0.52,192.28,192.24,23.48757969]
[1738877745145,0.52,192.28,192.2,4.26]
[1738877745146,0.52,192.28,192.23,43.48757969]
[1738877745339,0.52,192.28,192.25,23.48757969]
[1738877745534,8.06635703,192.3,192.27,23.48757969]
[1738877745754,8.06635703,192.3,192.23,20.0]
[1738877745755,8.06635703,192.3,192.29,23.48757969]
[1738877746154,8.06635703,192.3,192.28,23.48757969]
[1738877746332,0.5199,192.31,192.27,23.48757969]
[1738877746649,0.5199,192.32,192.28,23.48757969]
[1738877746959,0.5199,192.32,192.27,23.48757969]
[1738877747941,23.48757969,192.3,192.23,23.48757969]
[1738877748145,5.40536068,192.3,192.23,43.48757969]
[1738877748357,13.66282853,192.31,192.23,43.48757969]
[1738877748358,23.48757969,192.29,192.23,43.48757969]
[1738877748558,23.48757969,192.3,192.23,43.48757969]
[1738877748762,0.52,192.29,192.23,43.48757969]
[1738877749268,1.2999,192.32,192.23,43.48757969]
[1738877749269,29.60227969,192.33,192.26,23.48757969]
[1738877749457,0.5199,192.32,192.28,23.48757969]
[1738877749653,0.5199,192.32,192.29,23.48757969]
[1738877750859,0.5199,192.32,192.28,23.48757969]
[1738877751064,6.1147,192.33,192.3,23.48757969]
[1738877751268,6.6346,192.33,192.27,43.48757969]
[1738877751569,23.48757969,192.29,192.23,23.48757969]
[1738877751750,23.48757969,192.29,192.22,23.48757969]
[1738877751946,0.25098,192.28,192.13,5.08027725]
[1738877752262,23.48757969,192.25,192.13,5.2048]
[1738877752450,0.5202,192.23,192.18,23.48757969]
[1738877753658,0.5202,192.23,192.17,23.48757969]
[1738877753965,0.5202,192.23,192.18,23.48757969]
[1738877754141,0.5202,192.23,192.2,23.48757969]
[1738877754347,0.5202,192.23,192.21,23.48757969]
[1738877754551,1.3001,192.29,192.22,23.48757969]
[1738877754750,0.52,192.28,192.23,23.48757969]
[1738877755050,13.66282853,192.27,192.21,23.48757969]
[1738877755435,37.15040822,192.27,192.2,23.48757969]
[1738877756059,0.0985332,192.21,192.2,20.0]
[1738877756258,0.0985332,192.21,192.2,43.48757969]
[1738877757748,0.0985332,192.21,192.15,0.78031239]
[1738877757749,0.0985332,192.21,192.18,23.48757969]
[1738877757936,0.0985332,192.21,192.19,23.48757969]
[1738877758333,0.6187332,192.21,192.18,23.48757969]
[1738877758654,0.6187332,192.21,192.16,23.48757969]
[1738877759039,0.6187332,192.21,192.17,23.48757969]
[1738877759357,0.0985332,192.21,192.17,23.48757969]
[1738877759549,0.0985332,192.21,192.18,23.48757969]
[1738877759741,0.0985332,192.21,192.13,0.78049743]
[1738877759742,0.0985332,192.21,192.19,23.48757969]
[1738877760261,0.0985332,192.21,192.2,23.48757969]
[1738877761154,0.0985332,192.21,192.2,28.69047969]
[1738877761660,0.0985332,192.21,192.2,52.17805938]
[1738877761832,0.0985332,192.21,192.2,53.08359301]
[1738877762761,0.09534518,192.22,192.21,0.12549]
[1738877762939,0.09534518,192.22,192.21,23.61306969]
[1738877763260,0.09534518,192.22,192.21,42.47849822]
[1738877763441,0.10792645,192.23,192.21,42.47849822]
[1738877763640,0.10792645,192.23,192.22,24.39300216]
[1738877764659,0.10792645,192.23,192.22,29.59530216]
[1738877765863,0.10792645,192.23,192.22,29.46981216]
[1738877766056,0.11393498,192.24,192.23,1.0]
[1738877766261,0.11113884,192.3,192.25,20.12549]
[1738877766443,0.11113884,192.3,192.25,44.39292229]
[1738877766970,0.11113884,192.3,192.25,49.46893229]
[1738877767144,0.11113884,192.3,192.25,48.68907969]
[1738877767348,0.6180503,192.29,192.25,20.0]
[1738877767839,0.0980503,192.29,192.25,43.48757969]
[1738877768054,0.0980503,192.29,192.25,49.46920635]
[1738877768248,0.0980503,192.29,192.25,49.59469635]
[1738877769475,0.0980503,192.29,192.25,63.25752488]
[1738877770173,0.0980503,192.29,192.26,28.68877969]
[1738877770473,0.0980503,192.29,192.26,53.30184938]
[1738877770659,0.0980503,192.29,192.27,47.75487667]
[1738877770861,0.0980503,192.29,192.27,48.75487667]
[1738877771046,0.0980503,192.29,192.27,62.5431952]
[1738877771376,7.9285,192.44,192.32,0.12549]
[1738877771676,7.9285,192.44,192.42,23.48757969]
[1738877771976,7.9285,192.44,192.41,23.48757969]
[1738877772161,8.4481,192.44,192.32,0.77953671]
[1738877772470,8.4481,192.44,192.38,23.48757969]
[1738877772877,31.93567969,192.44,192.37,23.48757969]
[1738877774174,31.93567969,192.44,192.37,43.48757969]